Cogmind - Beta 13 @@@ ROGUE MODE // 2024.03.01 @ 09:40:03 Player: Rocko1345 Result: Destroyed by G-34 Mercenary with Small Laser Performance ------------- Evolutions (1) 500 Regions Visited (3) 600 Robots Destroyed (45) 225 Value Destroyed (1130) 1130 Prototype IDs (10) 200 Alien Tech Used (0) 0 Bonus (0) 0 TOTAL SCORE: 2655 Bonus ------- None Cogmind --------- Core Integrity 0/400 Matter 300/300 Energy 117/125 System Corruption 0% Temperature Cool (18) Movement Treading (240) Ox1 Location -9/Materials Parts ------- > --- POWER (1) -------- Light Ion Engine > --- PROPULSION (2) --- Light Treads Light Treads > --- UTILITY (4) ------ Improved Heat Sink High-capacity Storage Unit Signal Interpreter Hacking Suite > --- WEAPON (2) ------- Beam Rifle Beam Rifle > --- INVENTORY (20) --- Light Treads Light Treads Light Treads Improved Treads Medium Matter Pod (100) Trap Scanner Visual Processing Unit Visual Processing Unit Improved Terrain Scanner Launcher Guidance Computer Hacking Suite Medium Laser Grenade Launcher Datajack Peak State ------------ > --- POWER ------------ Heavy Ion Engine > --- PROPULSION ------- Light Treads Light Treads > --- UTILITY ---------- Improved Heat Sink High-capacity Storage Unit Signal Interpreter Hacking Suite > --- WEAPON ----------- Beam Rifle Beam Rifle > --- INVENTORY -------- Light Treads Light Treads Light Treads Medium Matter Pod Trap Scanner Visual Processing Unit Visual Processing Unit Improved Terrain Scanner Launcher Guidance Computer Medium Laser Grenade Launcher Datajack [Rating: 19] Favorites ----------- Power Light Ion Engine Engine Light Ion Engine Propulsion Light Treads Treads Light Treads Leg Aluminum Leg Utility High-capacity Storage Unit Device Improved Heat Sink Storage High-capacity Storage Unit Processor Signal Interpreter Hackware Hacking Suite Weapon Light Cannon Energy Gun Beam Rifle Ballistic Gun Assault Rifle Ballistic Cannon Light Cannon Launcher Grenade Launcher Special Weapon Welding Torch Build | -11 -10 -10 -9 ------- Run | Yrd Mat Min Mat Slots Evolved 2 | . . . 2 Power . | . . . . Propulsion . | . . . . Utility 2 | . . . 2 Weapon . | . . . . Parts Attached 37 | 8 7 4 18 Power 5 | 1 . 1 3 Engine 5 | 1 . 1 3 Core . | . . . . Reactor . | . . . . Propulsion 13 | 4 1 3 5 Treads 8 | 2 1 1 4 Leg 5 | 2 . 2 1 Wheel . | . . . . Hover . | . . . . Flight . | . . . . Utility 6 | 1 2 . 3 Device 2 | . . . 2 Storage 2 | 1 1 . . Processor 1 | . 1 . . Hackware 1 | . . . 1 Protection . | . . . . Artifact . | . . . . Weapon 13 | 2 4 . 7 Energy Gun 5 | 1 . . 4 Energy Cannon . | . . . . Ballistic Gun 2 | 1 . . 1 Ballistic Cannon 3 | . 3 . . Launcher 2 | . 1 . 1 Special Weapon 1 | . . . 1 Impact Weapon . | . . . . Slashing Weapon . | . . . . Piercing Weapon . | . . . . Special Melee Weapon . | . . . . Unidentified Prototypes 1 | . . . 1 Parts Lost 12 | . 1 4 7 Power 2 | . 1 . 1 Propulsion 5 | . . 3 2 Utility . | . . . . Weapon 5 | . . 1 4 Highest Loss Streak 4 | . 1 4 4 To Critical Strikes . | . . . . Average Slot Usage (%) 85 | . 89 80 83 Engine 8 | . 7 4 10 Treads 15 | . 28 11 9 Leg 6 | . . 15 8 Device 3 | . . . 6 Storage 12 | . 14 14 11 Processor 11 | . 10 14 11 Hackware 5 | . . . 10 Energy Gun 7 | . 3 . 11 Ballistic Gun 2 | . 3 . 2 Ballistic Cannon 11 | . 21 19 2 Naked Turns . | . . . . Heaviest Build 55 | 14 51 46 55 Greatest Support 40 | 40 40 40 40 Greatest Overweight (x) 2 | . 1 2 2 Average Overweight (x) 1 | . . 1 1 Largest Inventory Capacity 20 | 8 20 20 20 Average Capacity 19 | 7 18 20 20 Most Carried 14 | 4 10 11 14 Average Carried 8 | 1 5 9 9 Final Capacity 20 | 8 20 20 20 Final Carried 14 | 2 10 11 14 Class Distribution -------------------- 88% | Mutant 11% | Scavenger-Mutant Dominant Class ---------------- Mutant | -10/Materials Mutant | -10/Mines Mutant | -9/Materials Resources | -11 -10 -10 -9 ----------- Run | Yrd Mat Min Mat Matter Collected 1173 | 216 364 264 329 Remotely . | . . . . Salvage Created 1470 | . 346 75 1049 Parts 90 | . 29 4 57 Haulers Intercepted 2 | . . . 2 Recyclers Shooed 1 | . . 1 . Parts Field Recycled . | . . . . Retrieved Matter . | . . . . Parts Self-Destructed . | . . . . Prevented . | . . . . Kills | -11 -10 -10 -9 ------- Run | Yrd Mat Min Mat Combat Hostiles Destroyed 38 | . 11 9 18 Guns 19 | . 2 . 17 Cannons 19 | . 9 9 1 Classes Destroyed 9 | . 6 1 2 Worker 3 | . 1 . 2 Hauler 2 | . . . 2 Recycler 2 | . 1 . 1 Operator 2 | . 1 . 1 Watcher 5 | . 2 . 3 Swarmer 8 | . 5 . 3 Grunt 15 | . 6 2 7 Sentry 8 | . . . 8 Assembled 7 | . . 7 . Best Kill Streak 6 | . 4 4 6 Combat Bots Only 6 | . 3 4 6 Max Kills in Single Turn 2 | . 2 1 1 Gunslinging . | . . . . Exploded . | . . . . Melee . | . . . . Uniques/NPCs Destroyed . | . . . . Combat | -11 -10 -10 -9 -------- Run | Yrd Mat Min Mat Hostile Shots Fired 240 | . 58 39 143 Missed 67 | . 17 12 38 Damage Taken 2370 | . 459 457 1454 Core 491 | . 30 52 409 Absorbed by Shields . | . . . . Regen/Repaired (Parts) 128 | . . . 128 Core Remaining (%) 83 | 100 . 67 . Volleys Fired 167 | . 50 31 86 Largest 2 | . 2 2 2 Hottest 115 | . 70 70 115 Shots Fired 308 | . 100 53 155 Gun 194 | . 46 . 148 Cannon 112 | . 53 53 6 Launcher 1 | . 1 . . Special 1 | . . . 1 Kinetic 146 | . 76 53 17 Thermal 161 | . 23 . 138 Explosive 1 | . 1 . . Electromagnetic . | . . . . Robot Hit Streak 17 | . 7 6 17 Robot Miss Streak 5 | . 5 4 3 Penetration Max . | . . . . Secondary Targets . | . . . . Shots Hit Robots 193 | . 50 30 113 Core Hits 78 | . 21 13 44 Critical Kills . | . . . . Critical Parts Destroyed . | . . . . Critical Strikes 16 | . 3 2 11 Burn 11 | . . . 11 Blast 5 | . 3 2 . Melee Attacks . | . . . . Impact . | . . . . Slashing . | . . . . Piercing . | . . . . Sneak Attacks . | . . . . Combat Hostiles . | . . . . Follow-up Attacks . | . . . . Damage Inflicted 3071 | . 821 568 1682 Guns 1892 | . 307 . 1585 Cannons 1164 | . 505 564 95 Explosions 9 | . 9 . . Melee . | . . . . Ramming 6 | . . 4 2 Kinetic 1422 | . 674 564 184 Thermal 1634 | . 138 . 1496 Explosive 9 | . 9 . . Electromagnetic . | . . . . Impact . | . . . . Slashing . | . . . . Piercing . | . . . . Highest Corruption . | . . . . Average Corruption . | . . . . Corruption Purged . | . . . . Corruption Blocked . | . . . . Overload Shots . | . . . . Overflow Damage 34 | . . 34 . Projectiles 34 | . . 34 . Explosions . | . . . . Melee . | . . . . Knockbacks 16 | . 6 10 . Impact . | . . . . Kinetic 15 | . 5 10 . Secondary 1 | . 1 . . Self-Inflicted Damage . | . . . . Shots . | . . . . Rammed . | . . . . Targets Rammed 2 | . . 1 1 Kicked 2 | . . 1 1 Crushed . | . . . . Highest Temperature 245 | . 160 12 245 Average Temperature 44 | . 46 4 44 Received Heat Transfer 887 | . 189 56 642 Siege Activations . | . . . . Robots Corrupted . | . . . . Combat Hostiles . | . . . . Parts Fried . | . . . . Impact Corruptions . | . . . . Robots Melted . | . . . . Combat Hostiles . | . . . . Parts Melted 14 | . . . 14 Heat Transferred 5106 | . 407 . 4699 Parts Sabotaged . | . . . . Parts Stolen . | . . . . Parts Stripped . | . . . . Power Chain Reactions . | . . . . Alert | -11 -10 -10 -9 ------- Run | Yrd Mat Min Mat Peak Influence 285 | . 137 50 285 Initial 19 | . . 3 19 Average 61 | . 56 18 79 Maximum Alert Level 1 | . . . 1 Low Security (%) 90 | 100 100 100 80 Level 1 9 | . . . 19 Level 2 . | . . . . Level 3 . | . . . . Level 4 . | . . . . Level 5 . | . . . . High Security . | . . . . Max Security . | . . . . Squads Dispatched 4 | . 3 . 1 Investigation 1 | . 1 . . Extermination . | . . . . Reinforcement 3 | . 2 . 1 Assault . | . . . . Garrison . | . . . . Intercept . | . . . . Searches Triggered . | . . . . Construction Impeded . | . . . . Haulers Reinforced . | . . . . Active Scanning Responses . | . . . . Cargo Convoy Interrupts . | . . . . Stealth | -11 -10 -10 -9 --------- Run | Yrd Mat Min Mat Distress Signals 5 | . 1 . 4 Communications Jammed . | . . . . Distress Signals . | . . . . Times Spotted 61 | . 23 11 27 Peak Tracking Total 6 | . 3 2 6 Tactical Retreats 3 | . 1 . 2 Traps | -11 -10 -10 -9 ------- Run | Yrd Mat Min Mat Traps Triggered 2 | . 2 . . Indirectly . | . . . . Trap Hack Attempts . | . . . . Triggered . | . . . . Disarmed . | . . . . Reprogrammed . | . . . . Reused . | . . . . Traps Extracted . | . . . . Installed . | . . . . Triggered . | . . . . Machines | -11 -10 -10 -9 ---------- Run | Yrd Mat Min Mat Machines Disabled 1 | . 1 . . Max in Single Turn 1 | . 1 . . Machines Repaired . | . . . . Machines Dismantled . | . . . . Machines Sabotaged . | . . . . Overloaded Fab Kills . | . . . . Hacking | -11 -10 -10 -9 --------- Run | Yrd Mat Min Mat Machines Accessed 18 | . 6 1 11 Terminals 13 | . 6 . 7 Fabricators . | . . . . Repair Stations 1 | . . . 1 Recycling Units 2 | . . . 2 Scanalyzers 1 | . . . 1 Garrison Access . | . . . . Total Hacks 70 | . 21 1 48 Successful 41 | . 11 1 29 Failed 29 | . 10 . 19 Catastrophic 2 | . 2 . . Database Lockouts . | . . . . Manual 16 | . 8 . 8 Terminals 58 | . 21 . 37 Fabricators . | . . . . Repair Stations 2 | . . . 2 Recycling Units 4 | . . . 4 Scanalyzers 5 | . . . 5 Garrison Access . | . . . . Terminal Hacks 26 | . 9 1 16 Record 3 | . 3 . . Robot Analysis 1 | . . . 1 Prototype ID Bank 7 | . 3 . 4 Open Door 1 | . . 1 . Branch Access Points 1 | . . . 1 Emergency Access Points 1 | . . . 1 Terminal Index 1 | . . . 1 Scanalyzer Index 1 | . . . 1 Locate Traps 3 | . 2 . 1 Security Status 2 | . . . 2 Reinforcement Status 1 | . . . 1 Registered Components 1 | . . . 1 Registered Prototypes 1 | . . . 1 Zone Layout 2 | . 1 . 1 Fabricator Hacks . | . . . . Repair Station Hacks 2 | . . . 2 Scan Component 1 | . . . 1 Repair 1 | . . . 1 Recycling Unit Hacks 2 | . . . 2 Report Inventory 2 | . . . 2 Scanalyzer 5 | . . . 5 Insert Component 2 | . . . 2 Analyze 3 | . . . 3 Garrison Access Hacks . | . . . . Unauthorized Hacks 6 | . 2 . 4 Terminals 6 | . 2 . 4 Botnet 5 | . 2 . 3 Operators 1 | . . . 1 Fabricators . | . . . . Repair Stations . | . . . . Recycling Units . | . . . . Scanalyzers . | . . . . Garrison Access . | . . . . Data Cores Recovered . | . . . . Used . | . . . . Hacking Detections 15 | . 6 . 9 Full Trace Events . | . . . . Feedback Events . | . . . . Feedback Blocked . | . . . . Robot Schematics Acquired . | . . . . Robots Built . | . . . . Authchips . | . . . . Time . | . . . . Total Robot Build Rating . | . . . . Part Schematics Acquired 2 | . . . 2 Parts Built . | . . . . Authchips . | . . . . Time . | . . . . Total Part Build Rating . | . . . . Parts Repaired 1 | . . . 1 Time 26 | . . . 26 Parts Recycled . | . . . . Recycled Matter . | . . . . Retrieved Matter . | . . . . Retrieved Components . | . . . . Parts Scanalyzed 2 | . . . 2 Part Schematics Acquired 2 | . . . 2 Parts Damaged . | . . . . Bothacking | -11 -10 -10 -9 ------------ Run | Yrd Mat Min Mat Used RIF Installer . | . . . . Robots Hacked . | . . . . Non-combat . | . . . . Combat . | . . . . Robot Hacks Applied . | . . . . Relay Couplers Released . | . . . . Fabnet Peak Effective % . | . . . . Robots Rewired . | . . . . Allies Hacked . | . . . . Hacks Repelled . | . . . . Allies | -11 -10 -10 -9 -------- Run | Yrd Mat Min Mat Total Allies . | . . . . Largest Group . | . . . . Highest-Rated Group . | . . . . Highest-Rated Ally . | . . . . Total Orders . | . . . . Ally Attacks . | . . . . Total Damage . | . . . . Kills . | . . . . Allies Corrupted . | . . . . Allies Melted . | . . . . Intel | -11 -10 -10 -9 ------- Run | Yrd Mat Min Mat Robot Analysis Total 1 | . . . 1 Derelict Logs Recovered . | . . . . Drone Launches . | . . . . Drone Recoveries . | . . . . Exploration | -11 -10 -10 -9 ------------- Run | Yrd Mat Min Mat Turns Passed 5342 | 131 1781 730 2700 Spaces Moved 1846 | 81 684 250 831 Core 8 | 8 . . . Treads 1299 | 58 684 97 460 Legs 539 | 15 . 153 371 Wheels . | . . . . Hover . | . . . . Flight . | . . . . Fastest Speed 50 | 50 160 240 240 Average Speed 247 | 141 230 252 271 Slowest Speed 320 | 160 240 260 320 Overloaded Moves . | . . . . Propulsion Burnouts . | . . . . Robots Hopped . | . . . . Cave-ins Triggered . | . . . . Exploration Rate (%) 51 | 6 91 51 58 Regions Visited 3 Branch Regions 1 Pre-discovered Areas . | . . . . Known Exits Taken 2 | . 1 1 . Unknown Exits Taken 1 | 1 . . . Scrap Searched 1 | . . 1 . Spaces Dug 6 | . 6 . . Terrain Destroyed 6 | . 6 . . Melee . | . . . . Projectile . | . . . . AOE 6 | . 6 . . Terrain Rammed . | . . . . Walls Destroyed . | . . . . Machines Disabled . | . . . . Actions | -11 -10 -10 -9 --------- Run | Yrd Mat Min Mat Total 2299 | 96 788 296 1119 Wait 206 | . 37 6 163 Move 1843 | 80 683 249 831 Hop . | . . . . Pick Up 40 | 8 10 5 17 Fast Attach . | . . . . Attach 22 | 6 1 4 11 Detach . | . . . . Swap 15 | 2 6 . 7 Drop 4 | . 1 . 3 Fire 167 | . 50 31 86 Melee . | . . . . Ram . | . . . . Kick 2 | . . 1 1 Crush . | . . . . Escape Stasis . | . . . . Rewire . | . . . . Trap . | . . . . Miscellaneous . | . . . . Route ------- -11/Scrapyard -10/Materials (discovered 3 exits: *Mat x2 / *Min) -10/Mines -9/Materials (discovered 4 exits: [*Mat] / *Min x2 / *Sto) History --------- Turn | Location | Event 36 | -11/Scrapyard | Discovered new exit (range 14) 132 | -11/Scrapyard | Entered Materials 304 | -10/Materials | Build established: Mutant 444 | -10/Materials | Discovered new exit (range 3) 1153 | -10/Materials | Discovered new exit (range 13) 1375 | -10/Materials | Discovered new exit (range 16) 1886 | -10/Materials | Identified exit to Mines 1913 | -10/Materials | Entered Mines 1946 | -10/Mines | Assembled infested the area 2059 | -10/Mines | Met a Derelict who couldn't figure out how to use a Trap Extractor 2259 | -10/Mines | Lost 4 parts (3n1w) 2554 | -10/Mines | Discovered new exit (range 10) 2574 | -10/Mines | Identified exit to Materials 2643 | -10/Mines | Entered Materials 2643 | -9/Materials | Evolved 2 slots: Utility x2 3553 | -9/Materials | Discovered new exit (range 16) 3698 | -9/Materials | Core integrity fell below 50% 3737 | -9/Materials | Lost 4 parts (2n2w) 3860 | -9/Materials | Identified exit to Mines 3860 | -9/Materials | Identified exit to Storage 4003 | -9/Materials | Discovered new exit (range 16) 4100 | -9/Materials | Repaired Lgt. Treads 4647 | -9/Materials | Core integrity fell below 20% 5320 | -9/Materials | Build established: Scavenger-Mutant 5343 | -9/Materials | Destroyed by G-34 Mercenary with Small Laser Last Messages --------------- 05013_ K-01 Serf destroyed. 05018_ Critical hit (Burn: +37). 05022_ G-47 Trooper suffers critical hit (Burn). 05022_ G-47 Trooper destroyed. 05032_ Acquired Lgt. Ion Engine. 05034_ Acquired 10 matter. 05036_ R-06 Scavenger collects Wheel. 05052_ K-01 Serf collects debris. 05073_ A-02 Transporter suffers critical hit (Burn). 05079_ Lgt. Treads melted. 05079_ A-02 Transporter destroyed. 05094_ Ion Engine melted. 05094_ Transport Network Coupler melted. 05094_ A-02 Transporter destroyed. 05096_ K-01 Serf collects debris. 05117_ Acquired Imp. Treads. 05124_ R-06 Scavenger collects Lgt. Ion Engine. 05128_ R-06 Scavenger collects Heat Sink. 05131_ R-06 Scavenger collects Particle Gun. 05139_ R-06 Scavenger collects Hvy. Assault Rifle. Map ----- +----------------------------------------------------+ | ??#????????????????????????????????????????????? | | #????????????????????????????????????????????? | | " #????????????*???????????????????????????????? | | " #????????????????????????????????????????????? | | " ######???????????????????????????????????????? | | ## !!#???????????????????????????????????????? | | ## !#???????????????????????????????????????? | | ## !!#???????????????????????????>???????????? | | ## !!#??????????????? ????????????????????? | | ####*!!#??????????????? ????????????????????? | | *!!#??????????????? ????????????????????? | | #########?????????????? ????????????????????? | | # [ #?????????????? ?????#??????????????? | | + #?????????????? ???? ??????????????? | | # # ??????????? ?? ??????????????? | | ####+#######??????????? """ ""??????????????? | | #### #?????????????????# """ """? #?????????? | | #T## #?????????????????# """ """ ????????? | | #?????????????????# """gg""" ?????????? | | ##+######??????????????+ ????????? | | ## ! #??????????????# ???????????? | | # #??????????????# b #??????????????? | | # " " #??????????????# #??????????????? | | # "R" #??????????????# +??????????????? | | # """ #??????????????#t #??????????????? | | # #??????????????# @u #??????????????? | | #########???????????#####/#######??????????????? | | #?###????????# #????????????????? | | """ #?# ????????# ########?????????? | | """ #?# ????????# + ??????? | | """ #?# ? ??# [####?????????????? | | #?# """ #?# #????????????????? | | """ #?# """""#?# [ [ #????????????????? | | """ #?# """""#?# #????????????????? | | """ #?# """""#?# #????????????????? | | #?# """ #?#+#########????????????????? | | ##+#####?# ### ###??????????????????????? | | ##########+### ########???????????????? | | ???????????? | | > #######????????????????? | | % / #??????????????????????? | | % %###+########## #??????????????????????? | | # % ## #????###+###??????????????????????? | | # ## " #?????????????????????????????????? | | #% ## """ #?????????????????????????????????? | | # ## """ #?????????????????????????????????? | | # ## """ #?????????????????????????????????? | | # ## "" #?????????????????????????????????? | | # ## """ #????????????????????o????????????? | | # ## "" #?????????????????????????????????? | +----------------------------------------------------+ Best States ------------- Heat Dissipation 42 Energy Generation 14 Energy Capacity 280 Matter Stores 300 Matter Capacity 300 Sight Range 16 Terrain Scan Density 10 Evasion (%) 50 Recoil Reduction 2 Offensive Hacking 10 Item Schematics ----------------- Launcher Guidance Computer | -9/Materials | Scanalyzed Hacking Suite | -9/Materials | Scanalyzed Robot Schematics ------------------ None Fabricated ------------ Nothing Alien Tech Used ----------------- None Achievements -------------- None Challenges ------------ None Game ------ Seed StructuralSniperHumpback Manual? 0 Play Time 00:26:35 Cumulative 180.6 hours Start 2024.03.01 @ 09:13:13 End 2024.03.01 @ 09:40:03 Sessions 1 Manual Loads 0 Difficulty Rogue Special Mode None Game No. 210 Rogue 36 Adventurer 174 Explorer 0 Win Type - Total 1 Types 1/0/0/0/0/0/0/0/0 Lore% 58 Gallery% 65 Achievement% 51 Wizard Run 0 Options --------- Layout 0 ASCII 0 Keyboard 1 Movement Numpad Keybinds 0 Fullscreen 1 Font 18/TerminusBold Map View 76x50 Zoom Use 0% Tactical HUD 1 Map Filters NONE Filters NONE Steam 1 RUN: a5c7c772-7041-4575-b7c8-cc61654b08eb